fUST/lending_fUST_20241020
["ID","MTS","AMOUNT","RATE_DAILY","PERIOD"]
[340510434,1729394544369,2335.85,0.00027,60]
[340510435,1729394545220,772.27,0.00027,60]
[340510436,1729394545783,500.0,0.00027,60]
[340510437,1729394547000,500.0,0.00027,60]
[340510438,1729394547047,500.0,0.00027,60]
[340510439,1729394547365,869.81,0.00027,60]
[340510440,1729394547628,1222.93,0.00027,60]
[340510441,1729394548022,500.0,0.00027,60]
[340510442,1729394548839,920.23,0.00027,60]
[340510443,1729394551328,552.88322454,0.00027,60]
[340510444,1729394555440,500.0,0.00027,60]
[340510445,1729394557008,520.14069701,0.00027,60]
[340510446,1729394557261,856.31,0.00027,60]
[340510447,1729394557863,734.15,0.00027,60]
[340510448,1729394560263,818.01,0.00027,60]
[340510449,1729394561083,1120.65,0.00027,60]
[340510450,1729394561126,24997.39,0.00027,60]
[340510451,1729394563325,500.0,0.00027,60]
[340510452,1729394563919,500.0,0.00027,60]
[340510453,1729394565832,500.0,0.00027,60]
[340510454,1729394566040,500.0,0.00027,60]
[340510455,1729394566364,500.0,0.00027,60]
[340510456,1729394567582,500.0,0.00027,60]
[340510457,1729394568684,826.48,0.00027,60]
[340510458,1729394568987,500.0,0.00027,60]
[340510459,1729394569203,794.92,0.00027,60]
[340510460,1729394569797,2146.92,0.00027,60]
[340510461,1729394570978,942.72,0.00027,60]
[340510462,1729394571937,500.0,0.00027,60]
[340510463,1729394573547,500.0,0.00027,60]
[340510464,1729394574330,500.0,0.00027,60]
[340510465,1729394577224,543.10067789,0.00027,60]
[340510466,1729394578199,518.03455352,0.00027,60]
[340510467,1729394578851,1320.99,0.00027,60]
[340510468,1729394579487,500.0,0.00027,60]
[340510469,1729394580713,728.4,0.00027,60]
[340510470,1729394580764,500.0,0.00027,60]
[340510471,1729394581721,2630.64,0.00027,60]
[340510472,1729394581771,500.0,0.00027,60]
[340510473,1729394583255,200.0,0.00027,60]
[340510474,1729394583859,500.0,0.00027,60]
[340510475,1729394584587,500.0,0.00027,60]
[340510476,1729394585206,1128.21,0.00027,60]
[340510477,1729394585673,500.0,0.00027,60]
[340510478,1729394587263,500.0,0.00027,60]
[340510479,1729394587805,928.74,0.00027,60]
[340510480,1729394588857,673.24,0.00027,60]
[340510481,1729394590444,721.1,0.00027,60]
[340510482,1729394591800,654.92,0.00027,60]
[340510483,1729394592225,890.98,0.00027,60]
[340510484,1729394593212,1010.8,0.00027,60]
[340510485,1729394594471,548.03884833,0.00027,60]
[340510486,1729394597194,500.0,0.00027,60]
[340510487,1729394598980,500.0,0.00027,60]
[340510488,1729394600509,690.8,0.00027,60]
[340510489,1729394600559,500.0,0.00027,60]
[340510490,1729394601520,500.0,0.00027,60]
[340510491,1729394601791,500.0,0.00027,60]
[340510492,1729394602227,500.0,0.00027,60]
[340510493,1729394603049,1367.12,0.00027,60]
[340510494,1729394603255,500.0,0.00027,60]
[340510495,1729394604695,500.0,0.00027,60]
[340510496,1729394605655,500.0,0.00027,60]
[340510497,1729394606866,1780.6,0.00027,60]
[340510498,1729394607860,555.89,0.00027,60]
[340510499,1729394609208,500.0,0.00027,60]
[340510500,1729394609816,500.0,0.00027,60]
[340510501,1729394609918,899.15,0.00027,60]
[340510502,1729394610112,519.17920241,0.00027,60]
[340510503,1729394612195,500.0,0.00027,60]
[340510504,1729394613630,539.86,0.00027,60]
[340510505,1729394614325,500.0,0.00027,60]
[340510506,1729394614448,500.0,0.00027,60]
[340510507,1729394618050,500.0,0.00027,60]
[340510508,1729394618301,1249.05,0.00027,60]
[340510509,1729394619441,875.83,0.00027,60]
[340510510,1729394620226,613.49,0.00027,60]
[340510511,1729394621679,500.0,0.00027,60]
[340510512,1729394621917,606.23,0.00027,60]
[340510513,1729394623040,500.0,0.00027,60]
[340510514,1729394624801,649.41,0.00027,60]
[340510515,1729394625007,813.82,0.00027,60]
[340510516,1729394625480,1262.16,0.00027,60]
[340510517,1729394625678,500.0,0.00027,60]
[340510518,1729394626292,671.0,0.00027,60]
[340510519,1729394626945,203.58642145,0.00027,60]
[340510520,1729394627081,500.34,0.00027,60]
[340510521,1729394628947,500.0,0.00027,60]
[340510522,1729394629530,500.0,0.00027,60]
[340510523,1729394630505,500.0,0.00027,60]
[340510524,1729394631079,500.0,0.00027,60]
[340510525,1729394632284,391.13909761,0.00027,60]
[340510526,1729394634318,500.0,0.00027,60]
[340510527,1729394634588,778.53,0.00027,60]
[340510528,1729394634774,158.27,0.00027,60]
[340510529,1729394635254,891.94,0.00027,60]
[340510530,1729394635302,500.0,0.00027,60]
[340510531,1729394636250,1605.36,0.00027,60]
[340510532,1729394638079,2306.23,0.00027,60]
[340510533,1729394640456,500.0,0.00027,60]
[340510534,1729394641573,395.68552872,0.00027,60]
[340510535,1729394643412,753.94,0.00027,60]
[340510536,1729394643672,539.05371772,0.00027,60]
[340510537,1729394646005,924.54,0.00027,60]
[340510538,1729394648786,500.0,0.00027,60]
[340510539,1729394649429,500.0,0.00027,60]
[340510540,1729394649574,500.0,0.00027,60]
[340510541,1729394650523,653.96,0.00027,60]
[340510542,1729394653200,500.0,0.00027,60]
[340510543,1729394653776,1006.41,0.00027,60]
[340510544,1729394656634,515.61463163,0.00027,60]
[340510545,1729394657786,1012.44,0.00027,60]
[340510546,1729394658364,604.86526187,0.00027,60]
[340510547,1729394659058,2331.1,0.00027,60]
[340510548,1729394660838,500.0,0.00027,60]
[340510549,1729394661248,500.0,0.00027,60]
[340510550,1729394662330,980.33,0.00027,60]
[340510551,1729394662928,500.0,0.00027,60]
[340510552,1729394664470,1685.44,0.00027,60]
[340510553,1729394665605,500.0,0.00027,60]
[340510554,1729394666401,500.0,0.00027,60]
[340510555,1729394672624,862.18,0.00027,60]
[340510556,1729394672713,500.0,0.00027,60]
[340510557,1729394672757,500.0,0.00027,60]
[340510558,1729394674118,584.3,0.00027,60]
[340510559,1729394675069,662.0,0.00027,60]
[340510560,1729394675201,500.0,0.00027,60]
[340510561,1729394675693,500.0,0.00027,60]
[340510562,1729394676273,545.85,0.00027,60]
[340510563,1729394678002,1035.46,0.00027,60]
[340510564,1729394679891,500.0,0.00027,60]
[340510565,1729394680957,500.0,0.00027,60]
[340510566,1729394682859,500.0,0.00027,60]
[340510567,1729394686604,806.54,0.00027,60]
[340510568,1729394687375,946.54,0.00027,60]
[340510569,1729394687926,500.0,0.00027,60]
[340510570,1729394688061,1002.82,0.00027,60]
[340510571,1729394688103,500.0,0.00027,60]
[340510572,1729394688299,956.18,0.00027,60]
[340510573,1729394690592,500.0,0.00027,60]
[340510574,1729394690690,654.86,0.00027,60]
[340510575,1729394691048,502.97,0.00027,60]
[340510576,1729394691232,500.0,0.00027,60]
[340510577,1729394691917,1508.83,0.00027,60]
[340510578,1729394692128,868.6,0.00027,60]
[340510579,1729394695452,500.0,0.00027,60]
[340510580,1729394697240,695.35,0.00027,60]
[340510581,1729394698332,500.0,0.00027,60]
[340510582,1729394699802,963.07,0.00027,60]
[340510583,1729394700651,500.0,0.00027,60]
[340510584,1729394701652,592.90280339,0.00027,60]
[340510585,1729394702745,500.0,0.00027,60]
[340510586,1729394703381,749.27,0.00027,60]
[340510587,1729394703707,871.69,0.00027,60]
[340510588,1729394705888,500.0,0.00027,60]
[340510589,1729394706728,1461.76,0.00027,60]
[340510590,1729394709176,500.0,0.00027,60]
[340510591,1729394709808,500.0,0.00027,60]
[340510592,1729394710074,500.0,0.00027,60]
[340510593,1729394712939,500.0,0.00027,60]
[340510594,1729394713425,500.0,0.00027,60]
[340510595,1729394713607,1193.04,0.00027,60]
[340510596,1729394713871,1913.83,0.00027,60]
[340510597,1729394714135,905.41,0.00027,60]
[340510598,1729394714848,1100.83,0.00027,60]
[340510599,1729394714953,500.0,0.00027,60]
[340510600,1729394720394,500.0,0.00027,60]
[340510601,1729394721155,500.0,0.00027,60]
[340510602,1729394723199,500.0,0.00027,60]
[340510603,1729394724083,755.35,0.00027,60]
[340510604,1729394725322,1900.91,0.00027,60]
[340510605,1729394726099,500.0,0.00027,60]
[340510606,1729394726875,500.0,0.00027,60]
[340510607,1729394726925,635.94429548,0.00027,60]
[340510608,1729394727657,495.43607325,0.00027,60]
[340510617,1729394728739,500.0,0.00027,60]
[340510618,1729394728951,1657.61,0.00027,60]
[340510619,1729394729320,500.0,0.00027,60]
[340510620,1729394732420,626.24,0.00027,60]
[340510621,1729394733815,1000.0,0.00027,60]
[340510622,1729394733877,500.0,0.00027,60]
[340510623,1729394734795,1071.15,0.00027,60]
[340510624,1729394735551,500.0,0.00027,60]
[340510625,1729394735606,753.71,0.00027,60]
[340510626,1729394736034,500.0,0.00027,60]
[340510627,1729394736945,500.0,0.00027,60]
[340510628,1729394738628,500.0,0.00027,60]
[340510629,1729394741175,500.0,0.00027,60]
[340510630,1729394741600,1269.54,0.00027,60]
[340510631,1729394742729,522.04335148,0.00027,60]
[340510632,1729394743172,500.0,0.00027,60]
[340510633,1729394744033,1001.64,0.00027,60]
[340510634,1729394744580,500.0,0.00027,60]
[340510635,1729394744991,851.68,0.00027,60]
[340510636,1729394745409,1034.37,0.00027,60]
[340510637,1729394745978,500.0,0.00027,60]
[340510638,1729394746342,500.0,0.00027,60]
[340510639,1729394747549,3442.09,0.00027,60]
[340510640,1729394749363,1513.79,0.00027,60]
[340510641,1729394749466,500.0,0.00027,60]
[340510642,1729394749821,500.0,0.00027,60]
[340510643,1729394753133,920.32,0.00027,60]
[340510644,1729394754718,746.65,0.00027,60]
[340510645,1729394755744,696.62,0.00027,60]
[340510646,1729394757843,500.0,0.00027,60]
[340510647,1729394760183,588.72,0.00027,60]
[340510648,1729394760984,1208.86,0.00027,60]
[340510649,1729394761823,500.0,0.00027,60]
[340510650,1729394762432,889.3,0.00027,60]
[340510651,1729394762484,500.0,0.00027,60]
[340510652,1729394762536,500.0,0.00027,60]
[340510653,1729394762592,795.28,0.00027,60]
[340510654,1729394763083,655.46,0.00027,60]
[340510655,1729394763644,520.45840446,0.00027,60]
[340510656,1729394764799,676.73,0.00027,60]
[340510657,1729394766026,500.0,0.00027,60]
[340510658,1729394766069,500.0,0.00027,60]
[340510659,1729394769733,1167.65,0.00027,60]
[340510660,1729394769789,500.0,0.00027,60]
[340510661,1729394770784,500.0,0.00027,60]
[340510662,1729394774032,500.0,0.00027,60]
[340510663,1729394776181,909.91,0.00027,60]
[340510664,1729394776298,500.0,0.00027,60]
[340510665,1729394776380,1303.94,0.00027,60]
[340510666,1729394778051,500.0,0.00027,60]
[340510667,1729394778631,1191.74,0.00027,60]
[340510668,1729394780787,500.0,0.00027,60]
[340510669,1729394782349,852.5,0.00027,60]
[340510670,1729394783060,646.96,0.00027,60]
[340510671,1729394784514,964.76,0.00027,60]
[340510672,1729394785950,500.0,0.00027,60]
[340510673,1729394787014,500.0,0.00027,60]
[340510674,1729394787167,520.84970033,0.00027,60]
[340510675,1729394789335,500.0,0.00027,60]
[340510676,1729394789849,761.8,0.00027,60]
[340510677,1729394792487,962.75,0.00027,60]
[340510678,1729394793838,820.63,0.00027,60]
[340510679,1729394793983,541.45292713,0.00027,60]
[340510680,1729394794043,500.0,0.00027,60]
[340510681,1729394795957,500.0,0.00027,60]
[340510682,1729394796665,707.77,0.00027,60]
[340510683,1729394798535,500.0,0.00027,60]
[340510684,1729394799365,1012.01,0.00027,60]
[340510685,1729394799531,740.09,0.00027,60]
[340510686,1729394799581,1265.95,0.00027,60]
[340510687,1729394800975,989.51,0.00027,60]
[340510688,1729394801062,23955.84,0.00027,60]
[340510689,1729394804620,500.0,0.00027,60]
[340510690,1729394806335,505.64297886,0.00027,60]
[340510691,1729394808505,500.0,0.00027,60]
[340510692,1729394808551,533.23652834,0.00027,60]
[340510693,1729394808597,500.0,0.00027,60]
[340510694,1729394809293,645.19,0.00027,60]
[340510695,1729394810913,500.0,0.00027,60]
[340510696,1729394811105,500.0,0.00027,60]
[340510697,1729394813684,631.64154202,0.00027,60]
[340510698,1729394814455,500.0,0.00027,60]
[340510699,1729394814604,500.0,0.00027,60]
[340510700,1729394816302,888.25,0.00027,60]
[340510701,1729394818047,500.0,0.00027,60]
[340510702,1729394818556,662.02,0.00027,60]
[340510703,1729394819688,500.0,0.00027,60]
[340510704,1729394819946,500.0,0.00027,60]
[340510705,1729394820169,1101.4,0.00027,60]
[340510706,1729394822622,1000.0,0.00027,60]
[340510707,1729394824392,618.49,0.00027,60]
[340510708,1729394824457,500.0,0.00027,60]
[340510709,1729394824509,890.83,0.00027,60]
[340510710,1729394825969,691.05,0.00027,60]
[340510711,1729394826151,1031.23,0.00027,60]
[340510712,1729394826770,500.0,0.00027,60]
[340510714,1729394828005,964.31,0.00027,60]
[340510715,1729394828670,500.0,0.00027,60]
[340510716,1729394833777,500.0,0.00027,60]
[340510720,1729394834218,500.0,0.00027,60]
[340510721,1729394838276,1310.16,0.00027,60]
[340510722,1729394839378,578.69,0.00027,60]
[340510723,1729394842412,500.0,0.00027,60]
[340510724,1729394842799,779.91,0.00027,60]
[340510725,1729394844990,500.0,0.00027,60]
[340510726,1729394846086,500.0,0.00027,60]
[340510727,1729394847775,500.0,0.00027,60]
[340510728,1729394851069,500.0,0.00027,60]
[340510730,1729394854146,500.0,0.00027,60]
[340510731,1729394855154,500.0,0.00027,60]
[340510732,1729394855721,1506.77,0.00027,60]
[340510733,1729394858663,500.0,0.00027,60]
[340510734,1729394858881,500.0,0.00027,60]
[340510735,1729394859842,500.0,0.00027,60]
[340510736,1729394860561,1053.71,0.00027,60]
[340510737,1729394861737,713.45,0.00027,60]
[340510738,1729394861798,500.0,0.00027,60]
[340510739,1729394863103,500.0,0.00027,60]
[340510740,1729394864445,500.0,0.00027,60]
[340510741,1729394865392,1706.41,0.00027,60]
[340510742,1729394866078,500.0,0.00027,60]
[340510743,1729394866282,184.99648754,0.00027,60]
[340510744,1729394867541,500.0,0.00027,60]
[340510745,1729394868123,500.0,0.00027,60]
[340510746,1729394868718,204.06103848,0.00027,60]
[340510747,1729394869227,500.0,0.00027,60]
[340510748,1729394870648,670.81,0.00027,60]
[340510749,1729394871424,971.22,0.00027,60]
[340510750,1729394872353,500.0,0.00027,60]
[340510751,1729394874380,970.26,0.00027,60]
[340510752,1729394874781,854.77,0.00027,60]
[340510753,1729394876053,587.93,0.00027,60]
[340510754,1729394876705,500.0,0.00027,60]
[340510755,1729394878602,500.0,0.00027,60]
[340510756,1729394879352,500.0,0.00027,60]
[340510757,1729394879791,500.0,0.00027,60]
[340510758,1729394882642,775.89,0.00027,60]
[340510759,1729394882965,1190.21,0.00027,60]
[340510760,1729394883468,500.0,0.00027,60]
[340510761,1729394884175,500.0,0.00027,60]
[340510762,1729394885605,1043.98,0.00027,60]
[340510763,1729394887033,1796.51,0.00027,60]
[340510764,1729394890327,2027.34,0.00027,60]
[340510765,1729394892423,762.68,0.00027,60]
[340510766,1729394893582,500.0,0.00027,60]
[340510767,1729394895111,742.3,0.00027,60]
[340510768,1729394896361,500.0,0.00027,60]
[340510769,1729394897417,500.0,0.00027,60]
[340510770,1729394897817,1004.68,0.00027,60]
[340510771,1729394903101,500.0,0.00027,60]
[340510772,1729394903213,523.11,0.00027,60]
[340510773,1729394903820,500.0,0.00027,60]
[340510774,1729394903899,722.52,0.00027,60]
[340510775,1729394904770,500.0,0.00027,60]
[340510776,1729394905151,886.02,0.00027,60]
[340510777,1729394905333,500.0,0.00027,60]
[340510778,1729394905756,512.59330117,0.00027,60]
[340510779,1729394907938,500.0,0.00027,60]
[340510780,1729394908611,533.92586157,0.00027,60]
[340510781,1729394909789,500.0,0.00027,60]
[340510782,1729394910829,500.0,0.00027,60]
[340510783,1729394911505,1615.21,0.00027,60]
[340510784,1729394912683,233.33994152,0.00027,60]
[340510785,1729394914727,2233.97,0.00027,60]
[340510786,1729394914877,500.0,0.00027,60]
[340510787,1729394915455,890.47,0.00027,60]
[340510788,1729394915679,2929.33,0.00027,60]
[340510789,1729394915757,627.57,0.00027,60]
[340510790,1729394916708,500.0,0.00027,60]
[340510791,1729394917978,500.0,0.00027,60]
[340510792,1729394921472,500.0,0.00027,60]
[340510793,1729394923222,500.0,0.00027,60]
[340510794,1729394923432,992.32,0.00027,60]
[340510795,1729394925207,500.0,0.00027,60]
[340510796,1729394925338,500.0,0.00027,60]
[340510797,1729394925383,812.31,0.00027,60]
[340510798,1729394926416,500.0,0.00027,60]
[340510799,1729394927229,500.0,0.00027,60]
[340510800,1729394928225,500.0,0.00027,60]
[340510801,1729394928277,2411.04,0.00027,60]
[340510802,1729394928796,835.37,0.00027,60]
[340510803,1729394930457,990.62,0.00027,60]
[340510804,1729394930582,500.0,0.00027,60]
[340510805,1729394931026,6615.16718416,0.00027,60]
[340510806,1729394932934,500.0,0.00027,60]
[340510807,1729394934392,500.0,0.00027,60]
[340510808,1729394934996,911.66,0.00027,60]
[340510809,1729394936550,500.0,0.00027,60]
[340510810,1729394936752,832.41,0.00027,60]
[340510811,1729394936865,500.0,0.00027,60]
[340510812,1729394936911,1173.96,0.00027,60]
[340510813,1729394937557,927.93,0.00027,60]
[340510814,1729394937607,1296.79,0.00027,60]
[340510815,1729394938926,1143.33,0.00027,60]
[340510816,1729394939695,500.0,0.00027,60]
[340510817,1729394940010,1007.16,0.00027,60]
[340510818,1729394946206,718.05,0.00027,60]
[340510819,1729394946540,500.0,0.00027,60]
[340510820,1729394946667,1012.23,0.00027,60]
[340510821,1729394947644,500.0,0.00027,60]
[340510822,1729394947952,500.0,0.00027,60]
[340510823,1729394948216,666.38,0.00027,60]
[340510824,1729394948263,1445.96,0.00027,60]
[340510825,1729394953473,500.0,0.00027,60]
[340510826,1729394956282,500.0,0.00027,60]
[340510827,1729394957739,500.0,0.00027,60]
[340510828,1729394958264,528.53025424,0.00027,60]
[340510829,1729394958378,1588.55,0.00027,60]
[340510830,1729394958425,1054.96,0.00027,60]
[340510831,1729394958592,1210.87,0.00027,60]
[340510832,1729394960449,500.0,0.00027,60]
[340510833,1729394960518,1400.85,0.00027,60]
[340510834,1729394963056,500.0,0.00027,60]
[340510835,1729394963422,564.68,0.00027,60]
[340510836,1729394964319,740.57,0.00027,60]
[340510837,1729394965865,500.0,0.00027,60]
[340510838,1729394966032,584.68791535,0.00027,60]
[340510839,1729394966580,500.0,0.00027,60]
[340510840,1729394969117,473.24260167,0.00027,60]
[340510841,1729394972166,959.9,0.00027,60]
[340510842,1729394973024,500.0,0.00027,60]
[340510843,1729394974365,3298.67,0.00027,60]
[340510844,1729394975044,1821.71,0.00027,60]
[340510845,1729394975177,722.52,0.00027,60]
[340510846,1729394975235,500.0,0.00027,60]
[340510847,1729394975656,500.0,0.00027,60]
[340510848,1729394975704,500.0,0.00027,60]
[340510849,1729394978701,980.91,0.00027,60]
[340510850,1729394978751,500.0,0.00027,60]
[340510851,1729394979021,593.72299581,0.00027,60]
[340510852,1729394981260,1216.64,0.00027,60]
[340510853,1729394983287,834.63,0.00027,60]
[340510854,1729394983648,564.19,0.00027,60]
[340510855,1729394984426,500.0,0.00027,60]
[340510856,1729394984695,667.59,0.00027,60]
[340510857,1729394986852,173.61357951,0.00027,60]
[340510858,1729394989646,500.0,0.00027,60]
[340510859,1729394989755,500.0,0.00027,60]
[340510860,1729394991921,526.92,0.00027,60]
[340510861,1729394992167,500.0,0.00027,60]
[340510862,1729394992870,555.29,0.00027,60]
[340510863,1729394992915,500.0,0.00027,60]
[340510864,1729394994475,500.0,0.00027,60]
[340510865,1729394994807,991.28,0.00027,60]
[340510866,1729394995812,500.0,0.00027,60]
[340510867,1729394997041,1450.72,0.00027,60]
[340510868,1729394999473,500.0,0.00027,60]
[340510869,1729395000072,802.74,0.00027,60]
[340510870,1729395001283,206.7747152,0.00027,60]
[340510888,1729395031940,-458.0839852,0.00011169,2]
[340510889,1729395031952,-1738.50334083,0.00012141,2]
[340510890,1729395031962,-300.0,0.00012171,2]
[340510891,1729395031973,-300.0,0.00012171,2]
[340510892,1729395031983,-313.94532941,0.00012172,2]
[340510893,1729395031995,-90767.9942472,0.00012172,2]
[340510894,1729395032005,-22308.71447927,0.00012172,2]
[340510895,1729395032019,-2064.5055936,0.00012172,2]
[340510896,1729395032034,-466.0,0.00012172,2]
[340510897,1729395032047,-457.7766715,0.00012172,2]
[340510940,1729395039971,-67990.137881,0.00012172,2]
[340510941,1729395039984,-250.0,0.00012172,2]
[340511010,1729395046022,-454.555128,0.00012172,2]
[340511073,1729395718013,3000.0,0.00010303,2]
[340511074,1729395910891,3453.7920198,0.00010305,2]
[340511084,1729396105983,583.2141081,0.00010355,2]
[340511085,1729396148588,323.7889431,0.00010367,2]
[340511148,1729396239392,-162.381904,0.00010436,2]
[340511149,1729396239405,-8508.5232536,0.00010441,2]
[340511150,1729396239416,-162.381904,0.00010526,2]
[340511151,1729396239427,-162.381904,0.00010617,2]
[340511152,1729396239438,-162.381904,0.00010708,2]
[340511153,1729396239453,-162.381904,0.00010798,2]
[340511154,1729396239464,-300.0,0.00010856,2]
[340511155,1729396239475,-300.0,0.00010856,2]
[340511156,1729396239487,-162.381904,0.00010889,2]
[340511157,1729396239499,-162.381904,0.00010979,2]
[340511158,1729396239511,-153.0,0.00011,2]
[340511159,1729396239522,-153.0,0.00011,2]
[340511160,1729396239532,-153.0,0.00011,2]
[340511161,1729396239543,-153.0,0.00011,2]
[340511162,1729396239553,-153.0,0.00011441,2]
[340511163,1729396239564,-153.0,0.00011441,2]
[340511164,1729396239575,-153.0,0.000115,2]
[340511165,1729396239586,-153.0,0.00011541,2]
[340511166,1729396239597,-345.9803196,0.00011578,2]
[340511167,1729396239608,-153.7550872,0.00011578,2]
[340511168,1729396239619,-153.0,0.00011641,2]
[340511169,1729396239630,-153.0,0.00011778,2]
[340511170,1729396239641,-689.5545242,0.00011778,2]
[340511171,1729396239650,-150.59993605,0.00011872,2]
[340511172,1729396239661,-420.0,0.00011931,2]
[340511173,1729396239672,-420.0,0.00011942,2]
[340511174,1729396239682,-8886.86957974,0.00011943,2]
[340511175,1729396239694,-1564.65300672,0.00012082,2]
[340511176,1729396239705,-209.29688627,0.00012112,2]
[340511177,1729396239715,-3942.70886367,0.00012112,2]
[340511192,1729396240072,-419.65947247,0.00012112,2]
[340511194,1729396240085,-1009.50087834,0.00012112,2]
[340511278,1729397108358,476.0153886,0.0001,2]
[340511325,1729397432242,-161.5870493,0.0001111,2]
[340511327,1729397432253,-578.18085105,0.00011643,2]
[340511329,1729397432263,-531.64970529,0.00011833,2]
[340511331,1729397432275,-577.69732151,0.00011833,2]
[340511333,1729397432284,-407.20734976,0.00012002,2]
[340511335,1729397432294,-159.03181727,0.00012007,2]
[340511427,1729397446091,-248.17553246,0.00012007,2]
[340511429,1729397446101,-407.20734973,0.00012012,2]
[340511431,1729397446111,-468.14428125,0.00012012,2]
[340511432,1729397446120,-407.20734973,0.00012017,2]
[340511433,1729397446130,-407.20734973,0.00012022,2]
[340511434,1729397446139,-1408.18770612,0.00012042,2]
[340511435,1729397446152,-153.0,0.000121,2]
[340511436,1729397446161,-300.0,0.00012111,2]
[340511437,1729397446171,-300.0,0.00012111,2]
[340511438,1729397446181,-209.29688627,0.00012112,2]
[340511439,1729397446193,-45193.40745045,0.00012112,2]
[340511914,1729398640381,-1923.0125548,0.00011022,2]
[340511915,1729398640392,-300.0,0.00011945,2]
[340511916,1729398640403,-300.0,0.00011945,2]
[340511917,1729398640413,-8886.86957974,0.00011946,2]
[340511918,1729398640423,-421.32985317,0.00012003,2]
[340511919,1729398640433,-1267.36893549,0.00012022,2]
[340511920,1729398640443,-209.77332725,0.0001203,2]
[340511921,1729398640455,-20509.64574955,0.0001203,2]
[340512669,1729399839400,-159.944785,0.00010894,2]